[Event "Silver Lake Open-A 2018"]
[Site "Veliko Gradiste"]
[Date "2018.06.23"]
[Round "8"]
[White "Stoyanov, Tsvetan"]
[Black "Mitev, Valentin"]
[Result "1/2-1/2"]
[ECO "C09"]
[WhiteElo "2363"]
[BlackElo "2086"]
[Annotator "NA"]
[PlyCount "51"]
[EventDate "2018.06.21"]
[EventType "swiss"]
[EventCountry "SRB"]
[SourceTitle "playchess.com"]
[Source "ChessBase"]
[SourceQuality "1"]
[TimeControl "40/5400+30:900+30"]

1. e4 {[%emt 0:00:00]} e6 {[%emt 0:00:17]} 2. d4 {[%emt 0:00:00]} d5 {[%emt 0:00:06]} 3. Nd2 {[%emt 0:00:00]} c5 {[%emt 0:00:20]} 4. exd5 {[%emt 0:00:18]} exd5 {[%emt 0:00:07]} 5. Ngf3 {[%emt 0:00:13]} Nc6 {[%emt 0:00:08]} 6. Bb5 {[%emt 0:00:57]} Qe7+ {[%emt 0:00:29]} 7. Qe2 {[%emt 0:08:39]} Qxe2+ {[%emt 0:00:10]} 8. Kxe2 {[%emt 0:05:04]} a6 {[%emt 0:00:20]} 9. Bxc6+ {[%emt 0:00:13]} bxc6 {[%emt 0:00:05]} 10. dxc5 {[%emt 0:03:04]} Bxc5 {[%emt 0:00:11]} 11. Nb3 {[%emt 0:01:49]} Bd6 {[%emt 0:00:06]} 12. Be3 {[%emt 0:13:42]} f6 {[%emt 0:10:10]} 13. Ne1 {[%emt 0:16:10]} Rb8 {[%emt 0:08:19]} 14. Nd3 {[%emt 0:03:29]} Bf5 {[%emt 0:01:46]} 15. Rab1 {[%emt 0:02:27]} Ne7 {[%emt 0:11:07]} 16. Kd2 {[%emt 0:07:09]} Bxd3 {[%emt 0:03:17]} 17. cxd3 {[%emt 0:01:58]} Nf5 {[%emt 0:00:50]} 18. Rhc1 {[%emt 0:13:29]} Nxe3 {[%emt 0:05:06]} 19. fxe3 {[%emt 0:00:45]} Kd7 {[%emt 0:00:23]} 20. h3 {[%emt 0:01:00]} Rb4 {[%emt 0:02:34]} 21. Rc3 {[%emt 0:04:57]} Rhb8 {[%emt 0:04:22]} 22. Kc2 {[%emt 0:00:41]} Re8 {[%emt 0:06:15]} 23. Kd2 {[%emt 0:02:20]} Reb8 {[%emt 0:00:54]} 24. Kc2 {[%emt 0:03:21]} Re8 {[%emt 0:00:16]} 25. Kd2 {[%emt 0:00:03]} f5 26. Nc5+ 1/2-1/2

[Event "Silver Lake Open-A 2018"]
[Site "Veliko Gradiste"]
[Date "2018.06.24"]
[Round "9"]
[White "Kanakaris, Georgios"]
[Black "Low, Zhen Yu Cyrus"]
[Result "1-0"]
[ECO "A36"]
[WhiteElo "2399"]
[BlackElo "2387"]
[Annotator "ChessBase"]
[PlyCount "75"]
[EventDate "2018.06.17"]
[EventType "swiss"]
[EventCountry "SRB"]
[SourceTitle "playchess.com"]
[Source "ChessBase"]
[SourceQuality "1"]
[TimeControl "40/5400+30:900+30"]

1. c4 {[%emt 0:00:00]} c5 {[%emt 0:00:20]} 2. Nc3 {[%emt 0:00:00]} Nc6 {[%emt 0:00:08]} 3. g3 {[%emt 0:00:00]} g6 {[%emt 0:00:05]} 4. Bg2 {[%emt 0:00:27]} Bg7 {[%emt 0:00:30]} 5. e4 {[%emt 0:00:30]} e6 {[%emt 0:01:41]} 6. Nge2 {[%emt 0:04:30]} Nge7 {[%emt 0:00:07]} 7. O-O {[%emt 0:00:28]} O-O {[%emt 0:02:11]} 8. Rb1 {[%emt 0:05:22]} d6 {[%emt 0:10:17]} 9. a3 {[%emt 0:01:01]} b6 {[%emt 0:00:06]} 10. b4 {[%emt 0:01:48]} Bb7 {[%emt 0:00:05]} 11. d3 {[%emt 0:01:02]} Nd4 {[%emt 0:04:05]} 12. Nxd4 {[%emt 0:12:01]} cxd4 {[%emt 0:05:16]} 13. Ne2 {[%emt 0:00:35]} Qd7 {[%emt 0:00:42]} 14. Bb2 {[%emt 0:00:54]} e5 {[%emt 0:00:09]} 15. Qb3 {[%emt 0:04:05]} b5 {[%emt 0:09:00]} 16. cxb5 {[%emt 0:01:27]} Qxb5 {[%emt 0:00:06]} 17. a4 {[%emt 0:00:29]} Qd7 {[%emt 0:01:17]} 18. Ba3 {[%emt 0:02:11]} d5 {[%emt 0:01:11]} 19. f3 {[%emt 0:01:39]} Kh8 {[%emt 0:17:30]} 20. b5 {[%emt 0:00:23]} f5 {[%emt 0:01:13]} 21. a5 {[%emt 0:04:52]} Rfe8 {[%emt 0:11:18]} 22. a6 {[%emt 0:15:09]} Bc8 {[%emt 0:00:51]} 23. Bc5 {[%emt 0:03:55]} Rb8 {[%emt 0:04:56]} 24. Qa4 {[%emt 0:01:23]} Ng8 {[%emt 0:00:29]} 25. exf5 {[%emt 0:04:20]} gxf5 {[%emt 0:03:26]} 26. f4 {[%emt 0:00:22]} e4 {[%emt 0:01:01]} 27. Nxd4 {[%emt 0:00:30]} Bf8 {[%emt 0:02:13]} 28. Bxf8 {[%emt 0:03:00]} Rxf8 {[%emt 0:01:53]} 29. Nc6 {[%emt 0:01:25]} Rb6 {[%emt 0:00:51]} 30. Qd4+ {[%emt 0:00:08]} Nf6 {[%emt 0:00:42]} 31. Bh3 {[%emt 0:07:21]} Bxa6 {[%emt 0:02:26]} 32. Ne5 {[%emt 0:00:04]} Qe6 {[%emt 0:01:08]} 33. bxa6 {[%emt 0:00:07]} Rxa6 {[%emt 0:00:20]} 34. Rb7 {[%emt 0:01:33]} Ra2 {[%emt 0:02:56]} 35. Nd7 {[%emt 0:04:32]} Rf7 {[%emt 0:00:42]} 36. Nc5 {[%emt 0:00:11]} Qe8 {[%emt 0:00:46]} 37. Rxf7 {[%emt 0:02:49]} Qxf7 {[%emt 0:00:05]} 38. Rb1 {[%emt 0:01:30]} 1-0

[Event "Silver Lake Open-A 2018"]
[Site "Veliko Gradiste"]
[Date "2018.06.24"]
[Round "9"]
[White "Filev, Georgi"]
[Black "Baum, Jonasz"]
[Result "1/2-1/2"]
[ECO "B35"]
[WhiteElo "2390"]
[BlackElo "2230"]
[Annotator "NA"]
[PlyCount "40"]
[EventDate "2018.06.17"]
[EventType "swiss"]
[EventCountry "SRB"]
[SourceTitle "playchess.com"]
[Source "ChessBase"]
[SourceQuality "1"]
[TimeControl "40/5400+30:900+30"]

1. e4 {[%emt 0:00:00]} c5 {[%emt 0:00:04]} 2. Nf3 {[%emt 0:00:00]} Nc6 {[%emt 0:00:06]} 3. d4 {[%emt 0:00:00]} cxd4 {[%emt 0:00:05]} 4. Nxd4 {[%emt 0:00:01]} g6 {[%emt 0:00:04]} 5. Nc3 {[%emt 0:00:16]} Bg7 {[%emt 0:00:07]} 6. Be3 {[%emt 0:00:12]} Nf6 {[%emt 0:00:07]} 7. Bc4 {[%emt 0:00:20]} O-O {[%emt 0:00:09]} 8. Bb3 {[%emt 0:00:25]} Re8 {[%emt 0:00:06] B35: Sicilian: Accelerated Dragon with 5 Nc3: main line} 9. O-O {[%emt 0:04:05]} (9. f3 d5 10. exd5 Nb4 11. Nde2 e6 12. Bd4 exd5 13. O-O Be6 14. Bf2 d4 15. Nxd4 Bxb3 16. Nxb3 {½-½ (16) Jakovenko,D (2735)-Gelfand,B (2695) Poikovsky 2018}) 9... d6 {[%emt 0:00:23]} 10. h3 {[%emt 0:01:49]} Na5 {[%emt 0:00:09]} 11. Re1 {[%emt 0:04:08]} b6 {[%emt 0:01:14] LiveBook: 3 Games} 12. Qd3 {[%emt 0:04:49]} Nxb3 {[%emt 0:01:54]} 13. axb3 {[%emt 0:06:08]} Bb7 {[%emt 0:00:10]} 14. Bg5 {[%emt 0:02:01]} Qc7 $146 {[%emt 0:24:00]} ({Predecessor:} 14... a6 15. Nd5 e6 16. Nxf6+ Bxf6 17. Bxf6 Qxf6 {½-½ (51) Sebastian,D (2454)-Hausrath,D (2481) Germany 2016}) 15. b4 {[%emt 0:14:16]} Nd7 {[%emt 0:02:25]} 16. Nd5 {[%emt 0:04:12]} Bxd5 {[%emt 0:03:04]} 17. exd5 {[%emt 0:00:09]} Ne5 {[%emt 0:00:44]} 18. Qe2 {[%emt 0:04:12]} Qc4 {[%emt 0:08:26]} 19. Qxc4 {[%emt 0:12:16]} Nxc4 {[%emt 0:00:05]} 20. Nc6 $11 {[%emt 0:00:14]} Bxb2 {[%emt 0:00:58]} 1/2-1/2

[Event "Silver Lake Open-A 2018"]
[Site "Veliko Gradiste"]
[Date "2018.06.24"]
[Round "9"]
[White "Govedarica, Radovan"]
[Black "Vafiadis, Kleanthis"]
[Result "0-1"]
[ECO "B94"]
[WhiteElo "2355"]
[BlackElo "2247"]
[Annotator "NA"]
[PlyCount "56"]
[EventDate "2018.06.17"]
[EventType "swiss"]
[EventCountry "SRB"]
[SourceTitle "playchess.com"]
[Source "ChessBase"]
[SourceQuality "1"]
[TimeControl "40/5400+30:900+30"]

1. e4 {[%emt 0:00:00]} c5 {[%emt 0:00:09]} 2. Nf3 {[%emt 0:00:00]} d6 {[%emt 0:00:10]} 3. d4 {[%emt 0:00:00]} cxd4 {[%emt 0:00:13]} 4. Nxd4 {[%emt 0:00:00]} Nf6 {[%emt 0:00:12]} 5. Nc3 {[%emt 0:00:00]} a6 {[%emt 0:00:10]} 6. Bg5 {[%emt 0:00:34]} Nbd7 {[%emt 0:00:06]} 7. f4 {[%emt 0:00:18]} Qc7 {[%emt 0:00:15]} 8. Qf3 {[%emt 0:00:54] B94: Sizilianisch (Najdorf-Variante mit 6.Lg5)} (8. g3 e6 9. Bg2 b5 10. e5 Bb7 11. exf6 gxf6 12. Nd5 Bxd5 13. Bxd5 exd5 14. Qe2+ Kd8 15. Bh4 Qc4 {1-0 (23) Zeng,C (2532)-Zhou,J (2615) Tianjin 2018}) 8... b5 {[%emt 0:00:23]} 9. O-O-O {[%emt 0:00:54]} Bb7 {[%emt 0:00:07]} 10. Bxf6 {[%emt 0:01:24]} Nxf6 {[%emt 0:01:00]} 11. Nd5 {[%emt 0:00:02]} Nxd5 {[%emt 0:05:52]} 12. exd5 {[%emt 0:00:01]} g6 {[%emt 0:02:59]} 13. Nb3 $146 {[%emt 0:07:15]} ({Vorgänger:} 13. Qb3 Qc5 14. Nf3 Bg7 15. h4 Bc8 {½-½ (34) Ogleznev,A (2278)-Bulmaga,I (2364) Kishinev 2012}) 13... Bg7 {[%emt 0:00:57]} 14. Qd3 {[%emt 0:02:59]} O-O {[%emt 0:00:53]} 15. Be2 {[%emt 0:00:04]} a5 {[%emt 0:06:07]} 16. Nd4 {[%emt 0:03:06]} b4 {[%emt 0:00:42]} 17. Kb1 {[%emt 0:02:52]} a4 {[%emt 0:07:09]} ({Worse is} 17... Bxd5 18. Nb5 $16) 18. Bf3 {[%emt 0:04:09]} Ra5 {[%emt 0:17:15]} 19. Nc6 {[%emt 0:06:38]} Bxc6 {[%emt 0:01:49]} 20. dxc6 {[%emt 0:00:01]} Rd8 {[%emt 0:00:11]} 21. h4 {[%emt 0:00:27]} d5 {[%emt 0:01:23]} 22. h5 {[%emt 0:00:19]} Qxc6 {[%emt 0:00:59]} 23. hxg6 {[%emt 0:00:03]} hxg6 {[%emt 0:01:26]} 24. Qe3 {[%emt 0:12:04]} b3 {[%emt 0:07:33]} 25. Rd2 {[%emt 0:03:42]} bxa2+ {[%emt 0:02:50]} 26. Kxa2 {[%emt 0:00:02]} Rb8 {[%emt 0:01:09]} 27. c3 $19 {[%emt 0:01:42]} Qc4+ {[%emt 0:02:55]} 28. Kb1 {[%emt 0:00:01]} a3 {[%emt 0:00:35]} 0-1

[Event "Silver Lake Open-A 2018"]
[Site "Veliko Gradiste"]
[Date "2018.06.24"]
[Round "9"]
[White "Konaplev, Anton"]
[Black "Cvetkovic, Srdjan"]
[Result "0-1"]
[ECO "D35"]
[WhiteElo "2353"]
[BlackElo "2250"]
[Annotator "ChessBase"]
[PlyCount "112"]
[EventDate "2018.06.17"]
[EventType "swiss"]
[EventCountry "SRB"]
[SourceTitle "playchess.com"]
[Source "ChessBase"]
[SourceQuality "1"]
[TimeControl "40/5400+30:900+30"]

1. d4 {[%emt 0:00:00]} d5 {[%emt 0:00:32]} 2. c4 {[%emt 0:00:00]} e6 {[%emt 0:00:16]} 3. Nc3 {[%emt 0:00:00]} Nf6 {[%emt 0:00:11]} 4. cxd5 {[%emt 0:00:23]} exd5 {[%emt 0:00:08]} 5. Bg5 {[%emt 0:00:07]} Be7 {[%emt 0:01:42]} 6. e3 {[%emt 0:00:16]} c6 {[%emt 0:01:33]} 7. Bd3 {[%emt 0:00:08]} Nbd7 {[%emt 0:00:25]} 8. h3 {[%emt 0:00:27]} Nf8 {[%emt 0:05:02]} 9. Qc2 {[%emt 0:00:36]} Ne6 {[%emt 0:17:35]} 10. Bh4 {[%emt 0:00:12]} Nh5 {[%emt 0:04:18]} 11. Bxe7 {[%emt 0:01:28]} Qxe7 {[%emt 0:00:07]} 12. O-O-O {[%emt 0:00:55]} Nf6 {[%emt 0:05:58]} 13. Nf3 {[%emt 0:02:29]} Bd7 {[%emt 0:04:39]} 14. g4 {[%emt 0:00:34]} h6 {[%emt 0:01:51]} 15. Ne5 {[%emt 0:02:58]} O-O-O {[%emt 0:03:23]} 16. f4 {[%emt 0:03:00]} Kb8 {[%emt 0:01:00]} 17. Kb1 {[%emt 0:06:18]} Rc8 {[%emt 0:03:02]} 18. h4 {[%emt 0:05:28]} h5 {[%emt 0:03:11]} 19. f5 {[%emt 0:09:13]} Nc7 {[%emt 0:02:34]} 20. g5 {[%emt 0:00:49]} Ng4 {[%emt 0:02:09]} 21. Nxg4 {[%emt 0:01:19]} hxg4 {[%emt 0:00:06]} 22. Qf2 {[%emt 0:04:30]} Rce8 {[%emt 0:03:08]} 23. Rde1 {[%emt 0:00:43]} Qd6 {[%emt 0:03:33]} 24. Rhg1 {[%emt 0:07:27]} g3 {[%emt 0:01:07]} 25. Rxg3 {[%emt 0:10:14]} Rxh4 {[%emt 0:00:08]} 26. Rg2 {[%emt 0:09:55]} Reh8 {[%emt 0:05:14]} 27. a3 {[%emt 0:03:04]} Ne8 {[%emt 0:07:00]} 28. Bc2 {[%emt 0:03:00]} Qc7 {[%emt 0:01:26]} 29. Bd3 {[%emt 0:06:51]} Rh2 {[%emt 0:03:35]} 30. e4 {[%emt 0:08:53]} dxe4 {[%emt 0:07:49]} 31. Bxe4 {[%emt 0:00:01]} Rxg2 {[%emt 0:01:29]} 32. Qxg2 {[%emt 0:05:50]} Nd6 {[%emt 0:00:43]} 33. Rf1 {[%emt 0:02:02]} Re8 {[%emt 0:04:23]} 34. Bd3 {[%emt 0:00:54]} a6 {[%emt 0:00:59]} 35. Ka1 {[%emt 0:01:33]} Nb5 {[%emt 0:01:00]} 36. Bxb5 {[%emt 0:00:59]} axb5 {[%emt 0:00:05]} 37. Ne4 {[%emt 0:00:51]} b4 {[%emt 0:03:21]} 38. axb4 {[%emt 0:01:15]} b6 {[%emt 0:01:45]} 39. Qf3 {[%emt 0:01:00]} Kb7 {[%emt 0:00:54]} 40. Rc1 {[%emt 0:00:00]} g6 {[%emt 0:01:08]} 41. fxg6 {[%emt 0:07:18]} fxg6 {[%emt 0:00:07]} 42. b5 {[%emt 0:03:51]} Ra8+ {[%emt 0:04:15]} 43. Kb1 {[%emt 0:00:01]} Ra5 {[%emt 0:02:38]} 44. bxc6+ {[%emt 0:05:04]} Bxc6 {[%emt 0:00:05]} 45. Qd3 {[%emt 0:04:25]} Qf4 {[%emt 0:02:36]} 46. Nc3 {[%emt 0:01:08]} Bd7 {[%emt 0:04:15]} 47. Re1 {[%emt 0:00:30]} Bf5 {[%emt 0:00:36]} 48. Re7+ {[%emt 0:00:29]} Kb8 {[%emt 0:03:36]} 49. Ne4 {[%emt 0:00:21]} Qxg5 {[%emt 0:00:58]} 50. Re8+ {[%emt 0:00:13]} Ka7 {[%emt 0:00:18]} 51. Qc4 {[%emt 0:00:57]} Qg1+ {[%emt 0:00:50]} 52. Kc2 {[%emt 0:00:01]} Qg2+ {[%emt 0:00:26]} 53. Kd3 {[%emt 0:00:59]} Qf3+ {[%emt 0:01:02]} 54. Kd2 {[%emt 0:00:00]} Bxe4 {[%emt 0:00:10]} 55. Re7+ {[%emt 0:00:59]} Bb7 {[%emt 0:00:12]} 56. b4 {[%emt 0:00:23]} Ra1 {[%emt 0:00:36]} 0-1

[Event "Silver Lake Open-A 2018"]
[Site "Veliko Gradiste"]
[Date "2018.06.24"]
[Round "9"]
[White "Pantelic, Sasa"]
[Black "Parnali, S Dharia"]
[Result "0-1"]
[ECO "D35"]
[WhiteElo "2338"]
[BlackElo "2148"]
[Annotator "NA"]
[PlyCount "99"]
[EventDate "2018.06.17"]
[EventType "swiss"]
[EventCountry "SRB"]
[SourceTitle "playchess.com"]
[Source "ChessBase"]
[SourceQuality "1"]
[TimeControl "40/5400+30:900+30"]

1. d4 {[%emt 0:00:00]} d5 {[%emt 0:00:12]} 2. c4 {[%emt 0:00:00]} e6 {[%emt 0:00:12]} 3. Nc3 {[%emt 0:00:00]} Nf6 {[%emt 0:00:20]} 4. cxd5 {[%emt 0:00:09]} exd5 {[%emt 0:00:07]} 5. Bg5 {[%emt 0:00:08]} Be7 {[%emt 0:00:36]} 6. e3 {[%emt 0:00:10]} c6 {[%emt 0:00:39]} 7. Bd3 {[%emt 0:00:24]} Nbd7 {[%emt 0:00:55]} 8. Qc2 {[%emt 0:01:11]} Nh5 {[%emt 0:01:01]} 9. Bxe7 {[%emt 0:01:18] D36: Queen's Gambit Declined: Exchange Variation: Main line (5 Bg5 c6 6 Qc2)} Qxe7 {[%emt 0:00:03]} 10. O-O-O {[%emt 0:00:42]} Nhf6 {[%emt 0:00:25]} (10... Nb6 11. h3 Be6 12. Nge2 O-O-O 13. Kb1 Kb8 14. a4 Qb4 15. Nc1 Nc4 16. Ka1 Nf6 17. N3a2 Qe7 18. e4 g6 {½-½ (52) Wojtaszek,R (2745)-Onischuk,A (2682) Tbilisi 2017}) 11. Nge2 {[%emt 0:01:29]} Nb6 {[%emt 0:00:08]} 12. h3 {[%emt 0:00:41]} Be6 {[%emt 0:03:32]} 13. Nf4 $146 {[%emt 0:02:24]} ({Predecessor:} 13. g4 O-O-O 14. Ng3 g6 15. Kb1 Kb8 16. Ka1 Ne8 17. f3 Ka8 18. h4 Nd6 19. h5 Qf6 20. Qg2 Rhe8 21. Rhe1 Bc8 22. hxg6 hxg6 {0-1 (64) Olay,E (2348)-Kim,A (2481) Subic Bay 2009}) 13... O-O-O {[%emt 0:00:21]} 14. Nxe6 {[%emt 0:02:34]} fxe6 {[%emt 0:00:09]} 15. f4 {[%emt 0:00:04]} Kb8 {[%emt 0:00:28]} 16. g4 {[%emt 0:01:40]} h6 {[%emt 0:00:19]} 17. Na4 {[%emt 0:01:24]} Nxa4 {[%emt 0:02:26]} 18. Qxa4 {[%emt 0:04:59]} c5 {[%emt 0:03:37]} 19. Qa3 {[%emt 0:00:24]} Rc8 {[%emt 0:00:05]} 20. Kb1 {[%emt 0:00:18]} Rc7 {[%emt 0:03:56]} 21. Rc1 {[%emt 0:04:54]} Rhc8 {[%emt 0:04:50]} 22. Rc2 {[%emt 0:09:36]} Ng8 {[%emt 0:02:57]} 23. dxc5 {[%emt 0:04:36]} Rxc5 {[%emt 0:01:01]} 24. Rxc5 {[%emt 0:00:25]} Rxc5 {[%emt 0:00:43]} 25. Qa4 {[%emt 0:04:13]} Nf6 {[%emt 0:03:07]} 26. Rf1 $11 {[%emt 0:15:48]} Ne4 {[%emt 0:14:02]} 27. Bxe4 {[%emt 0:00:23]} Rc4 {[%emt 0:00:08]} 28. Qb3 {[%emt 0:05:53]} Rxe4 {[%emt 0:00:30]} 29. Rc1 {[%emt 0:00:54]} a6 {[%emt 0:04:37]} 30. a3 {[%emt 0:00:48]} Ka7 {[%emt 0:01:30]} 31. Rc8 {[%emt 0:01:59]} Qd6 {[%emt 0:06:39]} 32. Rg8 {[%emt 0:04:58]} Qc7 {[%emt 0:01:36]} 33. h4 {[%emt 0:00:31]} g5 {[%emt 0:02:52]} 34. hxg5 {[%emt 0:01:52]} Qh7 {[%emt 0:00:23]} 35. Rc8 {[%emt 0:20:21]} Rc4+ {[%emt 0:00:07]} 36. g6 {[%emt 0:00:04]} Qxg6+ {[%emt 0:00:10]} 37. f5 {[%emt 0:00:08]} exf5 {[%emt 0:02:47]} 38. Rxc4 {[%emt 0:00:23]} dxc4 {[%emt 0:00:07]} 39. Qxc4 {[%emt 0:00:38]} fxg4+ {[%emt 0:00:06]} 40. Ka2 {[%emt 0:00:00]} g3 {[%emt 0:03:02]} 41. Qd4+ {[%emt 0:08:16]} Qb6 {[%emt 0:00:06]} 42. Qf4 {[%emt 0:01:43]} Qe6+ {[%emt 0:00:25]} 43. Ka1 {[%emt 0:02:41]} Qg8 {[%emt 0:00:07]} 44. e4 {[%emt 0:01:53]} g2 {[%emt 0:00:32]} 45. Qf2+ {[%emt 0:00:02]} Ka8 {[%emt 0:00:30]} 46. Qg1 {[%emt 0:00:02]} h5 {[%emt 0:00:39]} 47. e5 {[%emt 0:00:11]} h4 {[%emt 0:00:07]} 48. e6 {[%emt 0:00:06]} h3 {[%emt 0:00:14]} 49. e7 {[%emt 0:00:07]} Qe8 {[%emt 0:03:58]} 50. Kb1 0-1

[Event "Silver Lake Open-A 2018"]
[Site "Veliko Gradiste"]
[Date "2018.06.24"]
[Round "9"]
[White "Krstulovic, Alex"]
[Black "Karavade, Eesha"]
[Result "1/2-1/2"]
[ECO "D38"]
[WhiteElo "2305"]
[BlackElo "2399"]
[Annotator "NA"]
[PlyCount "43"]
[EventDate "2018.06.17"]
[EventType "swiss"]
[EventCountry "SRB"]
[SourceTitle "playchess.com"]
[Source "ChessBase"]
[SourceQuality "1"]
[TimeControl "40/5400+30:900+30"]

1. d4 Nf6 2. c4 e6 3. Nf3 d5 4. Nc3 Bb4 5. Bg5 h6 6. Bxf6 Qxf6 7. Qb3 c5 8. cxd5 exd5 9. a3 Bxc3+ 10. Qxc3 Nd7 11. e3 O-O 12. Be2 b6 13. O-O {D38: Queen's Gambit Declined: Ragozin Defence (4 Nf3 Bb4)} Bb7 {LiveBook: 29 Games} 14. Rac1 (14. a4 a5 15. b3 Rfc8 16. Rac1 Rc7 17. Rc2 Rac8 18. Rfc1 Qd6 19. h3 Nf8 20. Qb2 Ne6 {½-½ (43) Dominguez Perez,L (2720)-Wojtaszek,R (2736) Baku 2016}) 14... Rac8 15. dxc5 $146 ({Predecessor:} 15. b4 Qd6 16. bxc5 bxc5 17. dxc5 Rxc5 18. Qb4 Rfc8 19. Rxc5 Nxc5 20. Nd4 g6 {1-0 (36) Petrosyan,T (2441)-Vehi Bach,V (2330) Badalona 2015}) 15... Qxc3 16. Rxc3 Rxc5 17. Rxc5 Nxc5 18. Nd4 Ne6 19. Nf5 Rd8 20. Bf3 Kf8 21. Rc1 $11 Rd7 22. h4 1/2-1/2

[Event "Silver Lake Open-A 2018"]
[Site "Veliko Gradiste"]
[Date "2018.06.24"]
[Round "9"]
[White "Desnica, Vladan"]
[Black "Stoyanov, Tsvetan"]
[Result "1-0"]
[ECO "E21"]
[WhiteElo "2300"]
[BlackElo "2363"]
[Annotator "NA"]
[PlyCount "111"]
[EventDate "2018.06.17"]
[EventType "swiss"]
[EventCountry "SRB"]
[SourceTitle "playchess.com"]
[Source "ChessBase"]
[SourceQuality "1"]
[TimeControl "40/5400+30:900+30"]

1. d4 {[%emt 0:03:14]} Nf6 {[%emt 0:00:10]} 2. Nf3 {[%emt 0:00:10]} e6 {[%emt 0:01:25]} 3. c4 {[%emt 0:02:39]} Bb4+ {[%emt 0:00:07]} 4. Nc3 {[%emt 0:00:10]} b6 {[%emt 0:00:42]} 5. Bg5 {[%emt 0:00:08]} Bxc3+ {[%emt 0:03:20] E21: Nimzo-Indian: 4 Nf3} 6. bxc3 {[%emt 0:00:11]} Bb7 {[%emt 0:00:13]} 7. Nd2 {[%emt 0:00:11]} d6 {[%emt 0:02:28]} 8. f3 {[%emt 0:01:15]} Nbd7 {[%emt 0:09:58] LiveBook: 12 Games} 9. e4 {[%emt 0:07:00]} e5 {[%emt 0:07:28]} 10. Bd3 {[%emt 0:02:18]} Qe7 {[%emt 0:04:12]} 11. Nf1 {[%emt 0:03:39]} h6 {[%emt 0:10:43]} 12. Bh4 {[%emt 0:00:24]} c6 $146 {[%emt 0:06:02]} ({Predecessor:} 12... g5 13. Bf2 Nh5 14. Ne3 Nf4 15. O-O c5 16. Bc2 Rd8 {0-1 (39) Gelfand,B (2758)-Morozevich,A (2750) Moscow 2009}) 13. Ne3 {[%emt 0:00:50]} g6 {[%emt 0:02:33]} 14. O-O {[%emt 0:00:25]} Qf8 {[%emt 0:07:02]} 15. c5 {[%emt 0:07:13]} dxc5 {[%emt 0:20:26]} 16. dxe5 {[%emt 0:01:27]} g5 {[%emt 0:00:13] [#]} 17. Bg3 $1 {[%emt 0:02:28]} ({Resist} 17. exf6 $6 gxh4 18. e5 O-O-O $18) 17... Nh5 {[%emt 0:01:14]} 18. Nf5 {[%emt 0:06:52]} O-O-O {[%emt 0:05:56]} 19. e6 {[%emt 0:01:29]} fxe6 {[%emt 0:03:04]} 20. Bd6 {[%emt 0:00:11]} exf5 {[%emt 0:00:13]} 21. Bxf8 {[%emt 0:00:06]} Rhxf8 {[%emt 0:00:58]} 22. Qa4 {[%emt 0:05:30]} Nf4 {[%emt 0:04:50]} 23. Ba6 {[%emt 0:00:16]} b5 {[%emt 0:01:34]} 24. Bxb7+ {[%emt 0:01:20]} Kxb7 {[%emt 0:00:01]} 25. Qc2 {[%emt 0:00:20]} Ne5 {[%emt 0:01:04]} 26. exf5 {[%emt 0:00:34]} Nc4 {[%emt 0:00:38]} 27. f6 {[%emt 0:07:06]} Rxf6 {[%emt 0:03:31]} 28. Rad1 $16 {[%emt 0:01:23]} Nd5 {[%emt 0:00:10]} 29. Rfe1 {[%emt 0:00:56]} Kb6 {[%emt 0:00:41]} 30. Qh7 {[%emt 0:02:01]} Rfd6 {[%emt 0:00:49]} 31. Rxd5 {[%emt 0:05:41]} cxd5 {[%emt 0:01:36]} 32. Re7 {[%emt 0:00:07]} Na5 {[%emt 0:01:23]} 33. Rxa7 {[%emt 0:00:18]} Rc8 {[%emt 0:00:38]} 34. Rd7 {[%emt 0:02:21]} Rcc6 {[%emt 0:01:09]} 35. Qe7 {[%emt 0:01:27]} Rxd7 {[%emt 0:00:36]} 36. Qxd7 {[%emt 0:00:07]} Nc4 {[%emt 0:00:35]} 37. Qd8+ {[%emt 0:00:25]} Rc7 {[%emt 0:00:36]} 38. Qxd5 {[%emt 0:00:21]} Ra7 {[%emt 0:00:34]} 39. Qe6+ {[%emt 0:00:39]} Kb7 {[%emt 0:00:20]} 40. Qe7+ {[%emt 0:00:00]} Kb6 {[%emt 0:00:04]} 41. Qf6+ {[%emt 0:00:24]} Ka5 {[%emt 0:01:43]} 42. Qxh6 {[%emt 0:01:09]} b4 {[%emt 0:02:18]} 43. Qxg5 {[%emt 0:04:02]} Kb5 {[%emt 0:00:50]} 44. cxb4 {[%emt 0:00:11]} Kxb4 {[%emt 0:00:01]} 45. h4 {[%emt 0:00:28]} Na3 {[%emt 0:02:13]} 46. Qd2+ {[%emt 0:00:53]} Ka4 {[%emt 0:00:18]} 47. h5 {[%emt 0:00:21]} c4 {[%emt 0:00:10]} 48. h6 {[%emt 0:00:58]} Rc7 {[%emt 0:01:15]} 49. Qd1+ {[%emt 0:02:01]} Ka5 {[%emt 0:00:40]} 50. Qd5+ {[%emt 0:00:07]} Nb5 {[%emt 0:00:25]} 51. Qf5 {[%emt 0:01:25]} c3 {[%emt 0:00:22]} 52. h7 {[%emt 0:00:07]} c2 {[%emt 0:00:02]} 53. Qxc2 {[%emt 0:00:23]} Rxc2 {[%emt 0:00:05]} 54. h8=Q {[%emt 0:00:05]} Kb4 {[%emt 0:00:15]} 55. Qf8+ {[%emt 0:00:34]} Kc4 {[%emt 0:00:17]} 56. Qc8+ {[%emt 0:00:26]} 1-0

[Event "Silver Lake Open-A 2018"]
[Site "Veliko Gradiste"]
[Date "2018.06.24"]
[Round "9"]
[White "Cerovic, Danilo"]
[Black "Savicevic, Vlatko"]
[Result "1-0"]
[ECO "C10"]
[WhiteElo "2292"]
[BlackElo "2354"]
[Annotator "NA"]
[PlyCount "45"]
[EventDate "2018.06.17"]
[EventType "swiss"]
[EventCountry "SRB"]
[SourceTitle "playchess.com"]
[Source "ChessBase"]
[SourceQuality "1"]
[TimeControl "40/5400+30:900+30"]

1. e4 {[%emt 0:00:00]} e6 {[%emt 0:02:27]} 2. d4 {[%emt 0:00:00]} d5 {[%emt 0:00:05]} 3. Nc3 {[%emt 0:00:24]} h6 {[%emt 0:00:37]} 4. Bd3 {[%emt 0:00:47]} dxe4 {[%emt 0:01:39]} 5. Nxe4 {[%emt 0:03:07]} Nf6 {[%emt 0:01:17]} 6. Nf3 {[%emt 0:00:26]} Nbd7 {[%emt 0:00:22]} 7. Qe2 $14 {[%emt 0:01:15]} Nxe4 {[%emt 0:04:37]} 8. Bxe4 {[%emt 0:03:27]} Bd6 {[%emt 0:00:09]} 9. Bd2 {[%emt 0:03:10]} Qf6 {[%emt 0:40:29]} 10. O-O-O {[%emt 0:05:02]} Bf4 {[%emt 0:03:52]} 11. Bxf4 {[%emt 0:01:59]} Qxf4+ {[%emt 0:00:05]} 12. Kb1 {[%emt 0:00:03]} Qd6 {[%emt 0:17:10]} 13. h4 {[%emt 0:23:48]} c6 {[%emt 0:11:06]} 14. Ne5 {[%emt 0:02:36]} Nf6 {[%emt 0:04:36]} 15. g4 {[%emt 0:06:09]} Bd7 {[%emt 0:00:13]} 16. g5 {[%emt 0:01:23]} Nxe4 {[%emt 0:00:49]} 17. Qxe4 {[%emt 0:01:09]} Qe7 {[%emt 0:00:06]} 18. Qf4 {[%emt 0:06:21]} hxg5 {[%emt 0:04:22]} 19. hxg5 {[%emt 0:00:58]} O-O-O {[%emt 0:00:08]} 20. Nxf7 {[%emt 0:09:54]} Rxh1 {[%emt 0:01:24]} 21. Rxh1 {[%emt 0:00:39]} Rf8 {[%emt 0:00:25]} 22. Nd6+ {[%emt 0:05:54]} Kc7 {[%emt 0:00:06]} 23. Nb5+ {[%emt 0:01:07]} 1-0